bitfinex/quotes_BTCUSD_20251219
["timestamp","ask_amount","ask_price","bid_price","bid_amount"]
[1766111284329,0.00588,85636.0,85623.0,0.0116791]
[1766111284534,0.00588,85645.0,85631.0,0.57584]
[1766111284734,0.00588,85645.0,85632.0,1.02692]
[1766111285515,0.00588,85645.0,85632.0,0.45108]
[1766111285806,0.57683,85644.0,85632.0,0.45144748]
[1766111286021,0.00077571,85633.0,85632.0,0.38844748]
[1766111286987,0.00077571,85633.0,85632.0,0.00036748]
[1766111287185,0.00588,85638.0,85623.0,0.24525867]
[1766111287410,0.00588,85637.0,85624.0,0.57584]
[1766111287620,0.00588,85637.0,85624.0,0.82109815]
[1766111287781,0.00588,85637.0,85619.0,0.57584]
[1766111287981,0.70357604,85630.0,85619.0,0.00011033]
[1766111288282,0.45006,85627.0,85619.0,0.00011033]
[1766111288882,0.57683,85626.0,85619.0,0.00011033]
[1766111289084,0.0907,85624.0,85619.0,3.3e-07]
[1766111289287,0.45006,85622.0,85603.0,0.57584]
[1766111289525,0.00588,85621.0,85605.0,0.57584]
[1766111290142,0.00588,85621.0,85606.0,0.01168142]
[1766111290339,0.00588,85621.0,85605.0,0.58752156]
[1766111290859,0.00588,85621.0,85607.0,1.02692]
[1766111291186,1.02689,85620.0,85607.0,0.45108]
[1766111291387,0.00011021,85622.0,85615.0,0.2336038]
[1766111291592,0.00588,85621.0,85620.0,0.001099]
[1766111291917,0.00588,85621.0,85616.0,0.45108]
[1766111292112,2.1e-07,85622.0,85613.0,0.23360908]
[1766111292322,2.1e-07,85622.0,85616.0,1.02692]
[1766111292527,2.1e-07,85622.0,85617.0,1.02692]
[1766111293143,2.1e-07,85622.0,85617.0,0.45108]
[1766111293346,2.1e-07,85622.0,85607.0,0.01168128]
[1766111293546,2.1e-07,85622.0,85609.0,0.01168101]
[1766111294148,0.62119021,85622.0,85606.0,0.49415]
[1766111294375,0.47314,85615.0,85600.0,0.01168224]
[1766111294562,0.00588,85614.0,85599.0,1.14862065]
[1766111294774,0.00588,85614.0,85600.0,1.07253224]
[1766111294976,0.00588,85614.0,85601.0,1.06085]
[1766111295360,0.00588,85614.0,85601.0,1.0725321]
[1766111295582,0.00588,85614.0,85601.0,1.06085]
[1766111295781,0.00588,85614.0,85601.0,0.49415]
[1766111296898,0.00588,85614.0,85595.0,0.23365844]
[1766111297100,0.62119,85612.0,85596.0,0.01756278]
[1766111297298,0.62119,85612.0,85596.0,0.00588]
[1766111297536,0.62119,85612.0,85599.0,0.01168237]
[1766111297915,0.00588,85613.0,85600.0,1.07253224]
[1766111298528,0.00588,85613.0,85601.0,0.0116821]
[1766111299294,0.00588,85613.0,85600.0,1.06085]
[1766111299931,0.00588,85613.0,85600.0,0.49415]
[1766111300132,0.00588,85613.0,85601.0,0.23364169]
[1766111300338,0.004781,85613.0,85606.0,0.01168142]
[1766111300530,0.004781,85613.0,85606.0,1.06085]
[1766111300993,0.004781,85613.0,85606.0,0.01168142]
[1766111301317,2.1e-07,85622.0,85613.0,0.01168046]
[1766111301526,2.1e-07,85622.0,85617.0,1.06085]
[1766111301898,2.1e-07,85625.0,85621.0,0.01167937]
[1766111302060,2.1e-07,85625.0,85621.0,1.06085]
[1766111302461,2.1e-07,85625.0,85621.0,1.07252937]
[1766111302690,2.1e-07,85625.0,85622.0,1.06085]
[1766111302892,2.1e-07,85625.0,85622.0,1.07252924]
[1766111303227,2.1e-07,85625.0,85623.0,1.06085]
[1766111303634,0.0907,85640.0,85625.0,0.23357626]
[1766111303824,0.00588,85639.0,85623.0,0.0116791]
[1766111304022,0.00588,85639.0,85620.0,1.06085]
[1766111304186,0.00588,85639.0,85623.0,1.06085]
[1766111304383,0.00588,85638.0,85622.0,0.01167924]
[1766111304593,0.00588,85638.0,85625.0,1.06085]
[1766111304792,0.00588,85638.0,85625.0,1.059751]
[1766111305068,0.00588,85638.0,85619.0,0.5667]
[1766111305069,0.62119,85637.0,85619.0,0.5667]
[1766111305313,0.00588,85638.0,85620.0,0.5667]
[1766111305485,0.00588,85638.0,85618.0,0.00588]
[1766111305486,0.00588,85638.0,85622.0,0.5667]
[1766111305914,1.10021,85638.0,85622.0,0.5667]
[1766111306247,0.00588,85638.0,85620.0,0.24526733]
[1766111306453,1.09433,85637.0,85621.0,0.01167937]
[1766111306656,1.09433,85637.0,85621.0,0.57837937]
[1766111306972,0.00588,85636.0,85623.0,1.06085]
[1766111307165,0.00588,85636.0,85623.0,0.49415]
[1766111307414,0.00588,85636.0,85618.0,0.25115449]
[1766111307545,1.09433,85635.0,85618.0,0.00588]
[1766111308115,1.09433,85635.0,85618.0,1.30032474]
[1766111308321,1.09433,85635.0,85621.0,1.07252937]
[1766111308446,0.47314,85635.0,85621.0,1.07252937]
[1766111308644,0.47314,85635.0,85622.0,1.06085]
[1766111309300,0.00588,85636.0,85624.0,1.06085]
[1766111309562,0.01858111,85641.0,85628.0,0.01167842]
[1766111309714,0.00588,85640.0,85629.0,1.06085]
[1766111310140,0.00588,85640.0,85630.0,1.06085]
[1766111310961,0.01858111,85641.0,85630.0,1.06085]
[1766111311140,0.00588,85639.0,85630.0,1.06085]
[1766111311918,0.0468,85657.0,85639.0,0.001099]
[1766111312107,0.16090828,85655.0,85637.0,1.06085]
[1766111312306,0.0907,85653.0,85637.0,1.06085]
[1766111313015,0.0907,85653.0,85636.0,0.01167733]
[1766111313266,0.0907,85653.0,85638.0,0.5667]
[1766111313831,0.71189,85653.0,85637.0,0.49415]
[1766111314032,1.18503,85653.0,85637.0,0.49415]
[1766111314442,0.00588,85652.0,85637.0,0.49415]
[1766111314643,0.0907,85651.0,85637.0,0.49415]
[1766111315060,0.62119,85647.0,85630.0,0.00588]
[1766111315263,0.62119,85645.0,85631.0,0.01167801]
[1766111315629,0.47902,85646.0,85634.0,0.0116776]
[1766111315858,0.47902,85646.0,85635.0,0.01167746]
[1766111316053,0.47902,85646.0,85634.0,0.0116776]
[1766111316276,0.00588,85646.0,85634.0,1.3060792]
[1766111316699,0.00588,85646.0,85634.0,1.0725276]
[1766111317034,1.32477954,85650.0,85634.0,1.06085]
[1766111317325,0.00588,85645.0,85634.0,1.06085]
[1766111317477,0.00588,85645.0,85634.0,1.0725276]
[1766111317684,0.00588,85645.0,85634.0,1.06085]
[1766111319582,0.00588,85645.0,85633.0,0.01167774]
[1766111319583,0.00588,85645.0,85631.0,0.01167801]
[1766111319787,1.10021,85645.0,85630.0,0.00588]
[1766111320171,1.10021,85645.0,85630.0,1.300292]
[1766111320384,1.10021,85645.0,85630.0,1.07840815]
[1766111320623,1.10021,85645.0,85631.0,0.01167801]
[1766111320828,1.10021,85645.0,85614.0,0.35040879]
[1766111320829,0.70358954,85641.0,85614.0,1.06085]
[1766111321060,0.62119,85638.0,85624.0,0.49415]
[1766111321257,0.00588,85637.0,85625.0,1.06085]
[1766111322029,0.00588,85637.0,85621.0,0.00588]
[1766111322256,0.47314,85635.0,85618.0,0.49415]
[1766111322457,0.62119,85630.0,85616.0,0.00588]
[1766111322661,0.47314,85629.0,85616.0,0.00588]
[1766111323710,0.00588,85630.0,85618.0,0.58862]
[1766111324104,0.00588,85630.0,85618.0,0.60029978]
[1766111324284,0.00588,85630.0,85619.0,0.01167965]
[1766111324650,0.00588,85630.0,85619.0,1.07794]
[1766111324843,0.88662944,85637.0,85619.0,1.08961965]
[1766111325260,0.00588,85636.0,85621.0,0.58862]
[1766111325563,0.46921,85636.0,85621.0,0.58862]
[1766111326744,1.0803,85636.0,85621.0,0.58862]
[1766111327777,0.46921,85636.0,85622.0,0.01401508]
[1766111327966,0.0468,85640.0,85621.0,0.58862]
[1766111327967,0.61697,85635.0,85621.0,0.58862]
[1766111328160,1.07442,85633.0,85619.0,0.48932]
[1766111328337,1.77800954,85630.0,85616.0,0.5945]
[1766111328894,0.46921,85629.0,85616.0,0.58862]
[1766111329296,0.46921,85629.0,85616.0,0.60030005]
[1766111329741,0.46921,85629.0,85617.0,0.58862]
[1766111330902,0.00588,85629.0,85617.0,0.48932]
[1766111331083,0.00588,85629.0,85618.0,0.01167978]
[1766111331319,0.00588,85629.0,85619.0,0.01167965]
[1766111331685,0.00588,85629.0,85617.0,0.7345962]
[1766111331686,0.00588,85629.0,85617.0,0.48932]
[1766111332722,0.00588,85629.0,85618.0,0.01167978]
[1766111332922,0.00588,85629.0,85617.0,0.50099992]
[1766111333187,0.00588,85629.0,85617.0,0.48932]
[1766111333470,0.00588,85629.0,85619.0,0.48932]
[1766111334882,0.00588,85628.0,85619.0,0.48932]
[1766111335289,0.00588,85628.0,85619.0,1.07794]
[1766111335488,0.004781,85628.0,85620.0,0.60029951]
[1766111335689,0.004781,85628.0,85620.0,0.83388762]
[1766111335912,0.004781,85628.0,85621.0,0.01167937]
[1766111336160,0.004781,85628.0,85622.0,0.58862]
[1766111337277,0.00588,85629.0,85617.0,0.01167992]
[1766111337445,0.00588,85629.0,85618.0,0.58862]
[1766111338716,0.00588,85629.0,85618.0,1.07794]
[1766111338916,0.00588,85629.0,85619.0,0.01167965]
[1766111339116,0.00588,85629.0,85619.0,1.07794]
[1766111340536,0.00588,85629.0,85620.0,0.58862]
[1766111340970,0.00588,85629.0,85620.0,0.60029951]
[1766111341223,0.00588,85629.0,85610.0,0.48932]
[1766111341371,0.00588,85629.0,85576.0,1.16854589]
[1766111341372,0.001099,85614.0,85601.0,0.1478]
[1766111341572,0.001099,85614.0,85605.0,0.00588]
[1766111341794,0.001099,85614.0,85601.0,0.00011021]
[1766111342047,0.46333,85613.0,85602.0,0.01168197]
[1766111342175,0.46333,85613.0,85603.0,0.01168183]
[1766111342393,0.00588,85618.0,85604.0,0.01168169]
[1766111342575,0.00588,85618.0,85605.0,0.01168156]
[1766111343445,0.00588,85617.0,85604.0,0.61904]
[1766111343720,0.00588,85617.0,85604.0,1.10266]
[1766111345620,0.00588,85617.0,85606.0,0.01168142]
[1766111345967,0.00588,85617.0,85609.0,0.01168101]
[1766111346120,1.05172,85622.0,85609.0,0.01168101]
[1766111346315,0.00588,85621.0,85609.0,0.24530091]
[1766111346537,0.00588,85621.0,85609.0,0.01168101]
[1766111346703,0.00588,85621.0,85607.0,0.63072128]
[1766111347102,1.05172,85622.0,85608.0,0.01168115]
[1766111347329,0.00588,85621.0,85607.0,0.63072128]
[1766111347538,0.00588,85620.0,85607.0,0.63072128]
[1766111347736,0.10531585,85647.0,85607.0,0.63072128]
[1766111347934,0.07020828,85626.0,85613.0,0.61904]
[1766111348164,0.07020828,85626.0,85612.0,0.48362]
[1766111348165,0.48059,85624.0,85612.0,0.48362]
[1766111348690,0.48059,85624.0,85613.0,0.61904]
[1766111349640,0.48059,85624.0,85612.0,0.48362]
[1766111349641,0.70358954,85623.0,85612.0,0.48362]
[1766111349825,0.70358954,85623.0,85608.0,0.00588]
[1766111349826,0.001099,85612.0,85608.0,0.00588]
[1766111350057,0.00588,85618.0,85608.0,0.00588]
[1766111351248,0.00588,85618.0,85611.0,0.61904]
[1766111351445,0.00588,85619.0,85615.0,0.61904]
[1766111351795,0.57113,85615.0,85594.0,0.00588]
[1766111352015,0.57113,85610.0,85594.0,0.00588]
[1766111352236,1.05172,85608.0,85594.0,0.00588]
[1766111352438,0.70358954,85611.0,85601.0,2.1e-07]
[1766111352639,1.05172,85600.0,85594.0,0.00416014]
[1766111352853,0.46759,85599.0,85594.0,1.4e-07]
[1766111353054,6.005e-05,85600.0,85594.0,1.4e-07]
[1766111358696,6.005e-05,85600.0,85594.0,1.06310014]
[1766111359244,6.005e-05,85600.0,85594.0,1.0747832]
[1766111359450,6.005e-05,85600.0,85594.0,0.5975332]
[1766111359571,6.005e-05,85600.0,85597.0,0.01168265]
[1766111359776,0.70186902,85610.0,85596.0,1.0631]
[1766111360041,0.01832748,85611.0,85600.0,0.48893224]
[1766111360238,0.46759,85619.0,85606.0,0.47725]
[1766111360578,0.00011026,85619.0,85612.0,0.47725]
[1766111360706,2.6e-07,85619.0,85618.0,1.0631]
[1766111360905,2.6e-07,85619.0,85618.0,1.06898]
[1766111361122,2.6e-07,85619.0,85618.0,1.30257573]
[1766111361326,2.6e-07,85619.0,85618.0,1.06898]
[1766111366499,2.6e-07,85619.0,85618.0,1.30257573]
[1766111371634,2.6e-07,85619.0,85618.0,1.06898]
[1766111371794,2.6e-07,85619.0,85618.0,1.067881]
[1766111372586,2.6e-07,85619.0,85618.0,0.59173]
[1766111372787,2.6e-07,85619.0,85618.0,0.00588]
[1766111374091,2.6e-07,85619.0,85618.0,0.48313]
[1766111374946,2.6e-07,85619.0,85618.0,1.06898]
[1766111378150,2.6e-07,85619.0,85618.0,1.30257573]
[1766111381378,2.6e-07,85619.0,85618.0,1.35259412]
[1766111382922,0.0907,85656.0,85642.0,1.05875]
[1766111383100,0.09106767,85656.0,85643.0,1.06463]
[1766111383421,0.00036767,85656.0,85643.0,0.00588]
[1766111384085,0.00036767,85656.0,85646.0,1.05875]
[1766111384285,0.00036767,85656.0,85643.0,0.00588]
[1766111384286,0.70945085,85670.0,85650.0,0.60812]
[1766111384500,0.00599021,85670.0,85652.0,0.45063]
[1766111384816,0.70357085,85660.0,85652.0,0.45063]
[1766111385831,0.00011021,85670.0,85663.0,0.45063]
[1766111386037,0.00011021,85670.0,85669.0,0.9322]
[1766111386038,2.1e-07,85670.0,85669.0,0.9322]
[1766111386267,2.1e-07,85670.0,85660.0,0.001099]
[1766111386484,0.60292,85669.0,85654.0,0.45063]
[1766111386687,0.60292,85669.0,85655.0,0.05268]
[1766111386892,0.60292,85668.0,85655.0,0.05268]
[1766111387290,0.70357106,85670.0,85651.0,0.0468]
[1766111387291,0.001099,85655.0,85651.0,0.0468]
[1766111387495,0.469709,85661.0,85652.0,0.00588]
[1766111388169,0.00588,85677.0,85653.0,0.45063]
[1766111388355,0.70357085,85670.0,85653.0,0.45074021]
[1766111388514,0.70357085,85670.0,85655.0,0.45063]
[1766111389452,0.60292,85669.0,85655.0,0.45063]
[1766111389655,0.60292,85669.0,85653.0,0.00011021]
[1766111389656,0.63916362,85670.0,85653.0,0.00011021]
[1766111389816,0.48361,85666.0,85653.0,0.00011021]
[1766111390018,0.00025836,85664.0,85653.0,0.00011021]
[1766111390440,1.08653,85663.0,85649.0,0.08897943]
[1766111390600,7.715e-05,85663.0,85650.0,0.4705205]
[1766111390799,7.715e-05,85663.0,85650.0,0.45651]
[1766111392202,7.715e-05,85663.0,85651.0,0.24517829]
[1766111392358,0.48361,85677.0,85651.0,0.94683]
[1766111392582,0.07020828,85671.0,85654.0,0.45063]
[1766111392784,0.07020828,85671.0,85656.0,0.45063]
[1766111393011,0.60292,85670.0,85656.0,0.45063]
[1766111393253,0.60292,85670.0,85651.0,7.715e-05]
[1766111393254,0.63916362,85670.0,85651.0,7.715e-05]
[1766111393532,0.07020828,85671.0,85652.0,0.00588]
[1766111393939,0.60292,85665.0,85652.0,0.00588]
[1766111394155,0.63916362,85670.0,85652.0,0.00588]
[1766111394156,0.60292,85663.0,85652.0,0.00588]
[1766111394291,0.41783065,85663.0,85652.0,0.00588]
[1766111394695,0.48361,85669.0,85653.0,0.45063]
[1766111394931,0.48361,85669.0,85652.0,0.00588]
[1766111396006,0.48361,85661.0,85653.0,0.00588]
[1766111396206,0.48361,85659.0,85640.0,0.05001839]
[1766111396443,0.60292,85657.0,85641.0,0.05264]
[1766111396795,1.08653,85657.0,85641.0,0.05264]
[1766111396991,1.08653,85657.0,85642.0,0.45063]
[1766111397195,1.08653,85657.0,85643.0,0.00588]
[1766111397395,0.60292,85655.0,85643.0,0.00588]
[1766111398238,0.48361,85654.0,85643.0,0.00588]
[1766111398437,1.08653,85654.0,85643.0,0.00588]
[1766111398673,7.715e-05,85659.0,85643.0,0.00588]
[1766111399300,0.07020828,85658.0,85643.0,0.00588]
[1766111399497,0.07020828,85658.0,85644.0,0.00588]
[1766111399498,0.48361,85651.0,85644.0,0.00588]
[1766111399706,0.60292,85649.0,85644.0,0.00588]
[1766111399839,0.48361,85648.0,85644.0,0.00588]
[1766111400280,0.60292,85645.0,85630.0,0.49739]
[1766111400482,0.60292,85644.0,85631.0,0.00588]
[1766111400750,7.715e-05,85659.0,85633.0,0.45063]
[1766111401069,7.715e-05,85659.0,85644.0,0.001099]
[1766111401070,0.60292,85652.0,85644.0,0.001099]
[1766111401265,0.60292,85651.0,85644.0,0.00588]
[1766111401572,1.08653,85651.0,85644.0,0.00588]
[1766111402387,0.60292,85649.0,85644.0,0.00588]
[1766111402563,1.08835,85648.0,85644.0,0.00588]
[1766111402762,0.07020828,85657.0,85643.0,0.00588]
[1766111402987,0.47531,85655.0,85643.0,0.00588]
[1766111403171,0.47531,85651.0,85643.0,0.00588]
[1766111403352,0.61304,85650.0,85643.0,0.00588]
[1766111403984,0.47531,85651.0,85643.0,0.00588]
[1766111404142,0.61311715,85659.0,85646.0,0.45941]
[1766111404350,7.715e-05,85659.0,85648.0,0.45941]
[1766111404547,7.715e-05,85659.0,85649.0,0.00588]
[1766111405270,0.61304,85657.0,85649.0,0.00588]
[1766111406106,7.715e-05,85659.0,85649.0,0.00588]
[1766111407508,0.61304,85658.0,85649.0,0.00588]
[1766111407747,0.47531,85655.0,85650.0,0.00588]
[1766111407929,7.715e-05,85659.0,85635.0,0.57628746]
[1766111407930,0.47531,85654.0,85647.0,0.00588]
[1766111408209,0.61304,85650.0,85635.0,0.0907]
[1766111408401,7.715e-05,85659.0,85635.0,0.0907]
[1766111408402,7.715e-05,85659.0,85638.0,1.02402]
[1766111408607,0.61304,85657.0,85639.0,0.45941]
[1766111408806,0.61304,85654.0,85639.0,0.45941]
[1766111410465,0.61304,85654.0,85640.0,0.45941]
[1766111410674,0.47531,85655.0,85640.0,0.01167678]
[1766111410896,0.47531,85655.0,85642.0,0.45941]
[1766111411102,0.47531,85655.0,85643.0,0.00588]
[1766111411346,7.715e-05,85659.0,85647.0,0.01167583]
[1766111411579,7.715e-05,85659.0,85655.0,0.001099]
[1766111411786,7.715e-05,85659.0,85649.0,0.70328337]
[1766111411787,0.03509061,85677.0,85662.0,0.01167378]
[1766111411981,0.61304,85681.0,85662.0,0.01167378]
[1766111411982,0.00588,85681.0,85665.0,0.57628337]
[1766111412307,0.47531,85682.0,85666.0,0.45941]
[1766111413047,0.61304,85686.0,85671.0,1.05431]
[1766111413259,0.61315015,85686.0,85672.0,0.49287]
[1766111413431,0.46171015,85686.0,85672.0,0.49287]
[1766111413579,0.62149,85685.0,85672.0,0.49287]
[1766111413780,1.08309,85684.0,85672.0,0.49287]
[1766111414206,0.4616,85681.0,85660.0,0.48699]
[1766111414404,0.62149,85669.0,85651.0,0.48699]
[1766111414639,1.08309,85664.0,85652.0,0.00588]
[1766111415437,0.07020828,85668.0,85652.0,0.00588]
[1766111415438,0.4616,85660.0,85652.0,0.00588]
[1766111415660,1.08309,85659.0,85652.0,0.00588]
[1766111415834,1.08309,85659.0,85649.0,0.04676]
[1766111415997,0.62149,85658.0,85652.0,0.00588]
[1766111416446,0.4616,85657.0,85649.0,0.04676]
[1766111416615,0.4616,85653.0,85647.0,0.00588]
[1766111416849,0.46171009,85653.0,85647.0,0.00588]
[1766111417409,0.62160009,85653.0,85637.0,0.56732]
[1766111417657,0.62149,85652.0,85638.0,0.00588]
[1766111418260,0.00011009,85653.0,85639.0,0.48699]
[1766111420034,0.00011009,85653.0,85641.0,0.48699]
[1766111421280,0.00011009,85653.0,85638.0,0.00588]
[1766111421488,0.00011009,85653.0,85614.0,0.01168033]
[1766111421489,1.08309,85650.0,85635.0,0.00588]
[1766111421694,0.4616,85647.0,85635.0,0.00588]
[1766111421901,0.62149,85642.0,85635.0,0.00588]
[1766111422284,0.4616,85643.0,85635.0,0.00588]
[1766111422685,0.62149,85647.0,85635.0,0.00588]
[1766111427288,0.62149,85643.0,85616.0,0.48699]
[1766111427488,0.4616,85625.0,85599.0,0.04676]
[1766111427718,0.4616,85621.0,85602.0,0.56732]
[1766111427863,0.00588,85627.0,85608.0,0.56732]
[1766111428043,0.62737,85627.0,85610.0,0.48699]
[1766111428246,0.62737,85627.0,85611.0,0.48699]
[1766111428651,0.62737,85627.0,85611.0,0.48735767]
[1766111428847,0.00588,85627.0,85613.0,0.48699]
[1766111429075,0.4616,85628.0,85613.0,0.48699]
[1766111429350,0.00588,85631.0,85616.0,0.48699]
[1766111429600,0.11696828,85642.0,85611.0,0.00036767]
[1766111429601,0.62149,85666.0,85634.0,0.48699]
[1766111429849,0.62149,85664.0,85635.0,0.01989296]
[1766111430052,0.62149,85664.0,85641.0,0.48699]
[1766111430182,0.07020828,85667.0,85643.0,0.48699]
[1766111430183,0.62149,85662.0,85643.0,0.48699]
[1766111430740,0.62149,85659.0,85642.0,0.00588]
[1766111430950,0.62149,85659.0,85623.0,0.06169749]
[1766111430951,0.62149,85642.0,85616.0,0.48699]
[1766111431150,0.62149,85638.0,85620.0,0.00588]
[1766111431498,0.00588,85638.0,85621.0,1.05431]
[1766111431698,8.141e-05,85642.0,85623.0,0.48699]
[1766111431699,0.00588,85640.0,85623.0,0.48699]
[1766111431921,0.07020828,85639.0,85623.0,0.48699]
[1766111432325,0.69169828,85639.0,85623.0,0.48699]
[1766111432549,0.69169828,85639.0,85620.0,0.00588]
[1766111432550,0.62149,85636.0,85620.0,0.00588]
[1766111432980,0.62149,85635.0,85620.0,0.00588]
[1766111433185,0.07020828,85639.0,85616.0,0.00588]
[1766111433186,0.62149,85629.0,85616.0,0.00588]
[1766111433392,0.62149,85627.0,85617.0,0.00588]
[1766111433601,0.62149,85626.0,85617.0,0.00588]
[1766111433804,0.62149,85625.0,85617.0,0.00588]
[1766111436611,0.001099,85617.0,85615.0,0.00588]
[1766111436746,0.001099,85617.0,85612.0,0.00588]
[1766111436948,0.4616,85624.0,85612.0,0.00588]
[1766111437394,8.141e-05,85642.0,85612.0,0.00588]
[1766111437395,0.4616,85639.0,85613.0,0.56732]
[1766111437602,0.4616,85636.0,85613.0,0.48699]
[1766111437850,0.4616,85632.0,85613.0,0.48699]
[1766111438012,0.4616,85628.0,85613.0,0.48699]
[1766111438164,0.4616,85625.0,85612.0,0.00588]
[1766111438369,1.08309,85625.0,85612.0,0.00588]
[1766111438827,0.00588,85631.0,85612.0,0.00588]
[1766111439124,0.62149,85630.0,85612.0,0.00588]
[1766111439801,0.62149,85629.0,85612.0,0.00588]
[1766111440182,0.00588,85628.0,85612.0,0.00588]
[1766111440389,0.00588,85628.0,85613.0,0.48699]
[1766111441626,0.62737,85628.0,85613.0,0.48699]
[1766111441823,0.62149,85627.0,85613.0,0.48699]
[1766111442743,0.62132367,85627.0,85613.0,0.48699]
[1766111442941,0.62132367,85627.0,85614.0,0.00588]
[1766111443651,0.49502,85627.0,85614.0,0.00588]
[1766111445888,0.00588,85628.0,85616.0,0.45066]
[1766111447437,0.59953,85628.0,85616.0,0.45066]
[1766111448247,1.08867,85627.0,85614.0,0.00588]
[1766111449759,1.08867,85627.0,85613.0,0.45066]
[1766111449958,1.08867,85627.0,85614.0,0.00588]
[1766111451453,1.08867,85627.0,85615.0,0.00588]
[1766111452084,0.49502,85625.0,85615.0,0.00588]
[1766111452240,0.49502,85625.0,85600.0,0.94991487]
[1766111452241,0.59365,85613.0,85610.0,0.00588]
[1766111452446,0.59365,85613.0,85599.0,0.0468]
[1766111452447,0.59365,85613.0,85605.0,0.00588]
[1766111452916,0.49502,85614.0,85605.0,0.00588]
[1766111453382,0.59365,85611.0,85605.0,0.00036767]
[1766111453798,0.49502,85610.0,85605.0,0.00036767]
[1766111454001,0.000367,85605.0,85591.0,0.01168347]
[1766111454178,0.00588,85612.0,85601.0,0.61155]
[1766111454574,0.49502,85628.0,85610.0,0.61155]
[1766111454809,0.09658,85627.0,85611.0,0.45654]
[1766111455132,0.69023,85627.0,85611.0,0.45654]
[1766111455336,0.0907,85625.0,85611.0,0.45654]
[1766111455534,0.59365,85626.0,85611.0,0.45654]
[1766111455944,0.59365,85631.0,85613.0,0.45066]
[1766111456141,0.59365,85631.0,85615.0,0.61155]
[1766111456345,0.59365,85631.0,85616.0,0.45066]
[1766111456565,0.59365,85631.0,85617.0,0.00588]
[1766111457247,0.49502,85629.0,85617.0,0.00588]
[1766111457453,1.08867,85625.0,85617.0,0.004781]
[1766111457878,0.59365,85624.0,85617.0,0.004781]
[1766111458866,0.49502,85625.0,85617.0,0.004781]
[1766111460369,0.59365,85624.0,85617.0,0.004781]
[1766111461020,0.59365,85631.0,85618.0,0.45066]
[1766111461322,0.59365,85630.0,85618.0,0.45066]
[1766111461522,0.59365,85628.0,85617.0,0.004781]
[1766111461720,0.49502,85642.0,85628.0,0.001099]
[1766111461960,0.00588,85642.0,85630.0,0.45066]
[1766111462171,0.00588,85642.0,85631.0,0.02569162]
[1766111462340,0.59365,85653.0,85636.0,0.61155]
[1766111462534,0.00588,85653.0,85637.0,0.47055263]
[1766111462791,0.00588,85653.0,85640.0,0.47866]
[1766111463137,0.00036721,85654.0,85640.0,0.47866]
[1766111464161,0.00036721,85654.0,85643.0,0.58561]
[1766111464446,0.00036721,85654.0,85645.0,0.47866]
[1766111464653,1.04302,85653.0,85644.0,0.00588]
[1766111464927,0.00036721,85654.0,85644.0,0.00588]
[1766111465138,0.00036721,85654.0,85644.0,0.48454]
[1766111465341,0.00036721,85654.0,85647.0,0.01167583]
[1766111465547,2.1e-07,85654.0,85650.0,1.06427]
[1766111465767,2.1e-07,85654.0,85653.0,1.29777028]
[1766111465985,0.58346,85685.0,85662.0,0.01167378]
[1766111466190,0.00588,85684.0,85666.0,0.47866]
[1766111466410,0.58346,85683.0,85667.0,0.478293]
[1766111466566,0.45956,85678.0,85663.0,0.00588]
[1766111466770,0.58346,85673.0,85663.0,0.00588]
[1766111466970,0.58346,85668.0,85661.0,0.00588]
[1766111467542,0.00588,85676.0,85657.0,0.00588]
[1766111467543,0.45956,85664.0,85657.0,0.00588]
[1766111467672,0.58346,85663.0,85657.0,0.00588]
[1766111469694,0.58334325,85663.0,85657.0,0.00588]
[1766111469897,0.45956,85662.0,85651.0,0.00588]
[1766111470107,0.46544,85662.0,85647.0,0.00588]
[1766111471463,0.04676,85676.0,85662.0,0.001099]
[1766111471639,0.00588,85675.0,85657.0,0.47866]
[1766111471857,0.0907,85674.0,85657.0,0.47866]
[1766111472353,0.67416,85674.0,85657.0,0.47866]
[1766111472920,0.67416,85674.0,85654.0,0.00588]
[1766111472921,0.49058,85667.0,85654.0,0.00588]
[1766111473125,0.07020828,85671.0,85651.0,0.00588]
[1766111473126,0.49058,85663.0,85651.0,0.00588]
[1766111473357,0.00588,85666.0,85651.0,0.00588]
[1766111473358,0.58365,85662.0,85651.0,0.00588]
[1766111473529,0.58356683,85662.0,85651.0,0.00588]
[1766111474048,0.49058,85665.0,85651.0,0.00588]
[1766111475567,0.58365,85664.0,85651.0,0.00588]
[1766111475751,0.58365,85664.0,85635.0,0.01167746]
[1766111475752,0.58365,85658.0,85643.0,0.00588]
[1766111475952,0.00588,85666.0,85640.0,0.00588]
[1766111475953,0.58365,85652.0,85640.0,0.00588]
[1766111476160,0.58365,85651.0,85640.0,0.00588]
[1766111476965,0.58376009,85651.0,85640.0,0.00588]
[1766111477179,0.00011009,85651.0,85640.0,0.47275]
[1766111477608,9e-08,85651.0,85644.0,0.46687]
[1766111477853,9e-08,85651.0,85645.0,0.46687]
[1766111480298,9e-08,85651.0,85647.0,1.04318]
[1766111480442,9e-08,85651.0,85648.0,0.48088083]
[1766111480639,9e-08,85651.0,85646.0,0.00588]
[1766111482748,0.00588,85665.0,85646.0,0.00588]
[1766111482896,0.00588,85665.0,85647.0,0.57631]
[1766111483097,0.00588,85665.0,85648.0,0.46687]
[1766111484090,0.49058,85669.0,85651.0,0.57631]
[1766111484289,0.00588,85668.0,85652.0,0.47275]
[1766111484510,0.49646,85668.0,85652.0,0.47275]
[1766111484689,0.58365,85665.0,85652.0,0.47275]
[1766111485332,0.37855613,85665.0,85652.0,0.47275]
[1766111485630,0.49058,85664.0,85652.0,0.00588]
[1766111485807,0.00588,85668.0,85654.0,0.46687]
[1766111486040,0.49646,85671.0,85655.0,0.46687]
[1766111486220,0.49058,85669.0,85645.0,0.00588]
[1766111486880,0.07020828,85670.0,85645.0,0.00588]
[1766111486881,0.49058,85664.0,85645.0,0.00588]
[1766111487052,0.49058,85654.0,85632.0,0.04676]
[1766111487224,0.49058,85652.0,85632.0,0.04676]
[1766111487428,0.58365,85641.0,85630.0,0.00588]
[1766111487628,0.58365,85641.0,85620.0,0.57631]